fUST/lending_fUST_20250517
["ID","MTS","AMOUNT","RATE_DAILY","PERIOD"]
[361338284,1747488083222,-450.0,0.00013698,2]
[361338285,1747488083242,-450.0,0.00013698,2]
[361338286,1747488083262,-450.0,0.00013698,2]
[361338287,1747488083282,-400.58774058,0.00013698,2]
[361338288,1747488083302,-450.0,0.00013698,2]
[361338289,1747488083322,-450.0,0.00013698,2]
[361338290,1747488083342,-400.0,0.00013698,2]
[361338291,1747488083361,-450.0,0.00013698,2]
[361338292,1747488083382,-500.0,0.00013698,2]
[361338293,1747488083403,-500.0,0.00013698,2]
[361338294,1747488083423,-404.03371887,0.00013698,2]
[361338295,1747488083443,-500.0,0.00013698,2]
[361338296,1747488083464,-500.0,0.00013698,2]
[361338297,1747488083485,-485.15136793,0.00013698,2]
[361338430,1747488632326,-177.862995,0.00012173,2]
[361338431,1747488632336,-766.63740363,0.00013598,2]
[361338432,1747488632346,-300.0,0.00013697,2]
[361338433,1747488632356,-1200.0,0.00013697,2]
[361338434,1747488632365,-300.0,0.00013697,2]
[361338435,1747488632375,-450.0,0.00013698,2]
[361338436,1747488632384,-402.5547944,0.00013698,2]
[361338437,1747488632394,-201.00557268,0.00013698,2]
[361338438,1747488632403,-450.0,0.00013698,2]
[361338439,1747488632412,-450.0,0.00013698,2]
[361338440,1747488632421,-450.0,0.00013698,2]
[361338441,1747488632431,-450.0,0.00013698,2]
[361338442,1747488632440,-403.04494381,0.00013698,2]
[361338443,1747488632449,-450.0,0.00013698,2]
[361338444,1747488632458,-450.0,0.00013698,2]
[361338445,1747488632468,-450.0,0.00013698,2]
[361338446,1747488632477,-581.19450872,0.00013698,2]
[361338448,1747488632486,-400.44898313,0.00013698,2]
[361338450,1747488632495,-1000.0,0.00013698,2]
[361338452,1747488632505,-450.0,0.00013698,2]
[361338454,1747488632517,-450.0,0.00013698,2]
[361338456,1747488632526,-450.0,0.00013698,2]
[361338458,1747488632535,-450.0,0.00013698,2]
[361338459,1747488632544,-450.0,0.00013698,2]
[361338460,1747488632553,-450.0,0.00013698,2]
[361338461,1747488632562,-450.0,0.00013698,2]
[361338462,1747488632571,-450.0,0.00013698,2]
[361338463,1747488632581,-450.0,0.00013698,2]
[361338464,1747488632590,-450.0,0.00013698,2]
[361338465,1747488632600,-450.0,0.00013698,2]
[361338466,1747488632609,-450.0,0.00013698,2]
[361338467,1747488632618,-450.0,0.00013698,2]
[361338468,1747488632628,-450.0,0.00013698,2]
[361338469,1747488632637,-400.0,0.00013698,2]
[361338470,1747488632647,-401.14289384,0.00013698,2]
[361338471,1747488632656,-450.0,0.00013698,2]
[361338472,1747488632665,-450.0,0.00013698,2]
[361338473,1747488632675,-450.0,0.00013698,2]
[361338474,1747488632683,-450.0,0.00013698,2]
[361338475,1747488632693,-450.0,0.00013698,2]
[361338476,1747488632702,-450.0,0.00013698,2]
[361338477,1747488632711,-450.0,0.00013698,2]
[361338478,1747488632721,-400.0,0.00013698,2]
[361338479,1747488632731,-450.0,0.00013698,2]
[361338480,1747488632740,-450.0,0.00013698,2]
[361338481,1747488632753,-400.0,0.00013698,2]
[361338482,1747488632763,-450.0,0.00013698,2]
[361338483,1747488632772,-537.19,0.00013698,2]
[361338484,1747488632782,-450.0,0.00013698,2]
[361338485,1747488632791,-400.0,0.00013698,2]
[361338486,1747488632802,-400.0,0.00013698,2]
[361338487,1747488632811,-450.0,0.00013698,2]
[361338488,1747488632820,-519.34525243,0.00013698,2]
[361338489,1747488632830,-450.0,0.00013698,2]
[361338490,1747488632839,-400.0,0.00013698,2]
[361338491,1747488632849,-450.0,0.00013698,2]
[361338492,1747488632859,-400.0,0.00013698,2]
[361338493,1747488632867,-450.0,0.00013698,2]
[361338494,1747488632877,-450.0,0.00013698,2]
[361338495,1747488632886,-450.0,0.00013698,2]
[361338496,1747488632895,-400.0,0.00013698,2]
[361338497,1747488632904,-450.0,0.00013698,2]
[361338498,1747488632914,-450.0,0.00013698,2]
[361338499,1747488632923,-400.0,0.00013698,2]
[361338500,1747488632934,-400.0,0.00013698,2]
[361338501,1747488632944,-463.83,0.00013698,2]
[361338502,1747488632953,-400.0,0.00013698,2]
[361338503,1747488632963,-449.0,0.00013698,2]
[361338504,1747488632972,-450.0,0.00013698,2]
[361338505,1747488632981,-353.6660509,0.00013698,2]
[361338506,1747488632991,-450.0,0.00013698,2]
[361338507,1747488633000,-400.0,0.00013698,2]
[361338508,1747488633009,-400.0,0.00013698,2]
[361338509,1747488633019,-450.0,0.00013698,2]
[361338510,1747488633029,-354.57689726,0.00013698,2]
[361338511,1747488633039,-305.06867561,0.00013698,2]
[361338512,1747488633049,-349.19350403,0.00013698,2]
[361338513,1747488633059,-400.0,0.00013698,2]
[361338514,1747488633068,-400.0,0.00013698,2]
[361338515,1747488633077,-350.85395784,0.00013698,2]
[361338516,1747488633087,-354.43028542,0.00013698,2]
[361338517,1747488633096,-450.0,0.00013698,2]
[361338518,1747488633106,-450.0,0.00013698,2]
[361338519,1747488633116,-450.0,0.00013698,2]
[361338520,1747488633126,-400.0,0.00013698,2]
[361338521,1747488633135,-554.74,0.00013698,2]
[361338522,1747488633145,-582.44,0.00013698,2]
[361338523,1747488633154,-450.0,0.00013698,2]
[361338524,1747488633165,-360.67628353,0.00013698,2]
[361338525,1747488633181,-400.0,0.00013698,2]
[361338526,1747488633192,-400.0,0.00013698,2]
[361338527,1747488633207,-361.18144406,0.00013698,2]
[361338528,1747488633217,-447.84,0.00013698,2]
[361338529,1747488633227,-400.0,0.00013698,2]
[361338530,1747488633237,-400.0,0.00013698,2]
[361338531,1747488633247,-400.0,0.00013698,2]
[361338532,1747488633256,-400.0,0.00013698,2]
[361338533,1747488633265,-400.0,0.00013698,2]
[361338534,1747488633276,-400.0,0.00013698,2]
[361338535,1747488633286,-500.0,0.00013698,2]
[361338536,1747488633295,-500.0,0.00013698,2]
[361338537,1747488633305,-500.0,0.00013698,2]
[361338538,1747488633314,-315.38,0.00013698,2]
[361338539,1747488633324,-450.0,0.00013698,2]
[361338540,1747488633333,-450.0,0.00013698,2]
[361338541,1747488633343,-500.0,0.00013698,2]
[361338542,1747488633352,-500.0,0.00013698,2]
[361338543,1747488633362,-83.85972561,0.00013698,2]
[361338569,1747488643339,-2493.1800821,0.00013561,2]
[361338576,1747488646999,-0.0425398,0.00013561,2]
[361338580,1747488807282,2693.641335,0.0002739,120]
[361338581,1747489009901,500.0,0.00027397,120]
[361338582,1747489018524,500.0,0.00027397,120]
[361338585,1747489300280,500.0,0.00027397,120]
[361338586,1747489312614,500.0,0.00027397,120]
[361338589,1747489326831,500.0,0.00027397,120]
[361338590,1747489338205,500.0,0.00027397,120]
[361338592,1747489370850,400.0,0.00027397,120]
[361338601,1747489697504,-207.1369735,0.00012697,2]
[361338614,1747489796416,4545.53277546,0.00027397,120]
[361338629,1747489832454,-207.1369735,0.00012825,2]
[361338630,1747489832465,-207.1369735,0.00012955,2]
[361338631,1747489832474,-441.126053,0.00013598,2]
[361338670,1747489838385,-229.68167515,0.00013598,2]
[361338672,1747489838395,-652.61296533,0.00013669,2]
[361338674,1747489838404,-300.0,0.00013696,2]
[361338675,1747489838413,-300.0,0.00013697,2]
[361338677,1747489838423,-300.0,0.00013697,2]
[361338678,1747489838432,-300.0,0.00013697,2]
[361338679,1747489838442,-1200.0,0.00013697,2]
[361338680,1747489838451,-352.9715658,0.00013698,2]
[361338681,1747489838460,-400.0,0.00013698,2]
[361338682,1747489838470,-400.0,0.00013698,2]
[361338683,1747489838479,-400.0,0.00013698,2]
[361338684,1747489838489,-178.98618073,0.00013698,2]
[361338685,1747489838501,-321.01381927,0.00013698,2]
[361338688,1747489838510,-450.0,0.00013698,2]
[361338690,1747489838520,-400.0,0.00013698,2]
[361338691,1747489838534,-400.0,0.00013698,2]
[361338692,1747489838544,-400.79023203,0.00013698,2]
[361338693,1747489838553,-450.0,0.00013698,2]
[361338694,1747489838563,-450.0,0.00013698,2]
[361338695,1747489838572,-400.0,0.00013698,2]
[361338696,1747489838581,-450.0,0.00013698,2]
[361338697,1747489838590,-450.0,0.00013698,2]
[361338698,1747489838610,-450.0,0.00013698,2]
[361338699,1747489838621,-498.33435988,0.00013698,2]
[361338700,1747489838631,-450.0,0.00013698,2]
[361338701,1747489838640,-165.86791167,0.00013698,2]
[361338702,1747489838650,-450.0,0.00013698,2]
[361338703,1747489838659,-450.0,0.00013698,2]
[361338704,1747489838668,-472.52235293,0.00013698,2]
[361338705,1747489838678,-400.0,0.00013698,2]
[361338706,1747489838687,-450.0,0.00013698,2]
[361338707,1747489838696,-400.0,0.00013698,2]
[361338708,1747489838706,-400.0,0.00013698,2]
[361338709,1747489838715,-533.59,0.00013698,2]
[361338710,1747489838724,-404.27285031,0.00013698,2]
[361338711,1747489838733,-450.0,0.00013698,2]
[361338712,1747489838743,-400.0,0.00013698,2]
[361338713,1747489838752,-158.40541169,0.00013698,2]
[361338714,1747489838762,-400.0,0.00013698,2]
[361338715,1747489838770,-450.0,0.00013698,2]
[361338716,1747489838782,-450.0,0.00013698,2]
[361338717,1747489838791,-400.0,0.00013698,2]
[361338718,1747489838801,-215.83503959,0.00013698,2]
[361338719,1747489838810,-450.0,0.00013698,2]
[361338720,1747489839024,-450.0,0.00013698,2]
[361338721,1747489839039,-400.0,0.00013698,2]
[361338722,1747489839048,-541.82,0.00013698,2]
[361338723,1747489839057,-400.0,0.00013698,2]
[361338724,1747489839066,-400.0,0.00013698,2]
[361338725,1747489839076,-418.60366812,0.00013698,2]
[361338726,1747489839085,-450.0,0.00013698,2]
[361338727,1747489839094,-206.75252799,0.00013698,2]
[361338728,1747489839106,-243.24747201,0.00013698,2]
[361338729,1747489839115,-450.0,0.00013698,2]
[361338730,1747489839125,-450.0,0.00013698,2]
[361338731,1747489839134,-450.0,0.00013698,2]
[361338732,1747489839143,-450.0,0.00013698,2]
[361338733,1747489839155,-450.0,0.00013698,2]
[361338734,1747489839166,-350.0,0.00013698,2]
[361338735,1747489839175,-450.0,0.00013698,2]
[361338736,1747489839184,-400.0,0.00013698,2]
[361338737,1747489839193,-450.0,0.00013698,2]
[361338738,1747489839202,-265.53838688,0.00013698,2]
[361338739,1747489839211,-450.0,0.00013698,2]
[361338740,1747489839220,-321.92027311,0.00013698,2]
[361338750,1747489842127,-128.07972689,0.00013698,2]
[361338751,1747489842137,-450.0,0.00013698,2]
[361338752,1747489842146,-450.0,0.00013698,2]
[361338753,1747489842156,-450.0,0.00013698,2]
[361338754,1747489842165,-352.52498597,0.00013698,2]
[361338825,1747489843737,-5713.40642824,0.00013561,2]
[361338826,1747489843746,-47.47501403,0.00013698,2]
[361338827,1747489843756,-1314.08,0.00013698,2]
[361338828,1747489843765,-450.0,0.00013698,2]
[361338829,1747489843774,-400.0,0.00013698,2]
[361338830,1747489843784,-744.73,0.00013698,2]
[361338831,1747489843794,-409.64036365,0.00013698,2]
[361338832,1747489843803,-450.0,0.00013698,2]
[361338833,1747489843812,-379.42100616,0.00013698,2]
[361338834,1747489843821,-450.0,0.00013698,2]
[361338835,1747489843830,-400.0,0.00013698,2]
[361338836,1747489843840,-450.0,0.00013698,2]
[361338837,1747489843849,-572.84363248,0.00013698,2]
[361338838,1747489843858,-450.0,0.00013698,2]
[361338839,1747489843868,-450.0,0.00013698,2]
[361338840,1747489843877,-450.0,0.00013698,2]
[361338841,1747489843886,-450.0,0.00013698,2]
[361338843,1747489843896,-450.0,0.00013698,2]
[361338845,1747489843905,-450.0,0.00013698,2]
[361338846,1747489843915,-836.2,0.00013698,2]
[361338847,1747489843924,-186.84678053,0.00013698,2]
[361338849,1747489843933,-450.0,0.00013698,2]
[361338851,1747489843942,-400.0,0.00013698,2]
[361338852,1747489843951,-270.446956,0.00013699,2]
[361338853,1747489843962,-198.563148,0.00013699,2]
[361338854,1747489843971,-500.0,0.00013834,2]
[361338855,1747489843980,-221.20682427,0.00013834,2]
[361338856,1747489843989,-500.0,0.00013834,2]
[361338857,1747489844002,-541.82,0.00013834,2]
[361338858,1747489844011,-450.0,0.00013835,2]
[361338859,1747489844021,-400.0,0.00013835,2]
[361338860,1747489844030,-407.86,0.00013835,2]
[361338861,1747489844039,-530.81,0.00013835,2]
[361338862,1747489844048,-450.0,0.00013835,2]
[361338863,1747489844058,-450.0,0.00013835,2]
[361338864,1747489844068,-450.0,0.00013835,2]
[361338865,1747489844079,-450.0,0.00013835,2]
[361338866,1747489844089,-450.0,0.00013835,2]
[361338867,1747489844099,-450.0,0.00013835,2]
[361338868,1747489844108,-450.0,0.00013835,2]
[361338869,1747489844116,-450.0,0.00013835,2]
[361338870,1747489844126,-450.0,0.00013835,2]
[361338871,1747489844135,-450.0,0.00013835,2]
[361338872,1747489844144,-450.0,0.00013835,2]
[361338873,1747489844153,-1314.08,0.00013835,2]
[361338874,1747489844162,-450.0,0.00013835,2]
[361338875,1747489844171,-744.73,0.00013835,2]
[361338876,1747489844181,-450.0,0.00013835,2]
[361338877,1747489844190,-200.94108081,0.00013835,2]
[361338878,1747489844199,-450.0,0.00013835,2]
[361338879,1747489844208,-450.0,0.00013835,2]
[361338880,1747489844217,-450.0,0.00013835,2]
[361338881,1747489844227,-450.0,0.00013835,2]
[361338882,1747489844236,-450.0,0.00013835,2]
[361338883,1747489844245,-450.0,0.00013835,2]
[361338884,1747489844254,-836.2,0.00013835,2]
[361338885,1747489844263,-158.0438359,0.000139,2]
[361338886,1747489844272,-6092.23633721,0.00013971,2]
[361338887,1747489844282,-500.0,0.00013971,2]
[361338888,1747489844291,-541.82,0.00013971,2]
[361338889,1747489844300,-450.0,0.00013972,2]
[361338890,1747489844309,-450.0,0.00013972,2]
[361338891,1747489844319,-450.0,0.00013972,2]
[361338892,1747489844328,-450.0,0.00013972,2]
[361338893,1747489844337,-450.0,0.00013972,2]
[361338894,1747489844346,-450.0,0.00013972,2]
[361338895,1747489844356,-450.0,0.00013972,2]
[361338896,1747489844365,-450.0,0.00013972,2]
[361338897,1747489844375,-450.0,0.00013972,2]
[361338898,1747489844384,-1314.08,0.00013972,2]
[361338899,1747489844393,-450.0,0.00013972,2]
[361338900,1747489844403,-744.73,0.00013972,2]
[361338901,1747489844412,-450.0,0.00013972,2]
[361338902,1747489844423,-450.0,0.00013972,2]
[361338903,1747489844432,-450.0,0.00013972,2]
[361338904,1747489844442,-450.0,0.00013972,2]
[361338905,1747489844452,-497.84,0.00013972,2]
[361338906,1747489844461,-450.0,0.00013972,2]
[361338907,1747489844471,-450.0,0.00013972,2]
[361338908,1747489844480,-836.2,0.00013972,2]
[361338909,1747489844490,-450.0,0.00014109,2]
[361338910,1747489844499,-450.0,0.00014109,2]
[361338911,1747489844509,-450.0,0.00014109,2]
[361338912,1747489844518,-450.0,0.00014109,2]
[361338913,1747489844527,-450.0,0.00014109,2]
[361338914,1747489844537,-450.0,0.00014109,2]
[361338915,1747489844546,-450.0,0.00014109,2]
[361338916,1747489844556,-450.0,0.00014109,2]
[361338917,1747489844566,-450.0,0.00014109,2]
[361338918,1747489844575,-1314.08,0.00014109,2]
[361338919,1747489844586,-450.0,0.00014109,2]
[361338920,1747489844595,-744.73,0.00014109,2]
[361338921,1747489844605,-450.0,0.00014109,2]
[361338922,1747489844614,-450.0,0.00014109,2]
[361338923,1747489844624,-450.0,0.00014109,2]
[361338924,1747489844773,-450.0,0.00014109,2]
[361338925,1747489844783,-450.0,0.00014109,2]
[361338926,1747489844792,-450.0,0.00014109,2]
[361338927,1747489844801,-836.2,0.00014109,2]
[361338928,1747489844811,-160.0,0.00014138,2]
[361338929,1747489844820,-160.0,0.00014138,2]
[361338930,1747489844830,-160.0,0.00014138,2]
[361338931,1747489844839,-160.0,0.00014138,2]
[361338932,1747489844848,-160.0,0.00014138,2]
[361338933,1747489844858,-212.29844686,0.00014138,2]
[361338934,1747489844867,-160.0,0.00014138,2]
[361338935,1747489844876,-713.08628095,0.00014146,2]
[361338936,1747489844886,-500.0,0.00014245,2]
[361338937,1747489844895,-541.82,0.00014245,2]
[361338938,1747489844904,-595.66010842,0.00014246,2]
[361338939,1747489844913,-450.0,0.00014246,2]
[361338940,1747489844922,-450.0,0.00014246,2]
[361338941,1747489844932,-450.0,0.00014246,2]
[361338942,1747489844941,-450.0,0.00014246,2]
[361338943,1747489844950,-450.0,0.00014246,2]
[361338944,1747489844961,-450.0,0.00014246,2]
[361338945,1747489844971,-450.0,0.00014246,2]
[361338946,1747489844982,-450.0,0.00014246,2]
[361338947,1747489844995,-1314.08,0.00014246,2]
[361338948,1747489845005,-450.0,0.00014246,2]
[361338949,1747489845014,-744.73,0.00014246,2]
[361338950,1747489845023,-450.0,0.00014246,2]
[361338951,1747489845035,-450.0,0.00014246,2]
[361338952,1747489845047,-450.0,0.00014246,2]
[361338953,1747489845057,-450.0,0.00014246,2]
[361338954,1747489845070,-450.0,0.00014246,2]
[361338955,1747489845081,-450.0,0.00014246,2]
[361338956,1747489845093,-836.2,0.00014246,2]
[361338957,1747489845104,-291.57890646,0.00014299,2]
[361338958,1747489845113,-541.82,0.00014299,2]
[361338959,1747489845122,-23564.35286461,0.000143,2]
[361338960,1747489845131,-600.0,0.000143,2]
[361338961,1747489845140,-713.08628094,0.00014352,2]
[361338962,1747489845150,-541.82,0.00014382,2]
[361338963,1747489845159,-151.0,0.00014383,2]
[361338964,1747489845168,-450.0,0.00014383,2]
[361338965,1747489845178,-450.0,0.00014383,2]
[361338966,1747489845187,-450.0,0.00014383,2]
[361338967,1747489845196,-450.0,0.00014383,2]
[361338968,1747489845206,-180.79301604,0.00014383,2]
[361338969,1747489845215,-450.0,0.00014383,2]
[361338970,1747489845224,-450.0,0.00014383,2]
[361338971,1747489845234,-450.0,0.00014383,2]
[361338972,1747489845243,-1314.08,0.00014383,2]
[361338973,1747489845252,-450.0,0.00014383,2]
[361338974,1747489845261,-744.73,0.00014383,2]
[361338975,1747489845271,-450.0,0.00014383,2]
[361338976,1747489845280,-450.0,0.00014383,2]
[361338977,1747489845289,-450.0,0.00014383,2]
[361338978,1747489845300,-450.0,0.00014383,2]
[361338979,1747489845310,-450.0,0.00014383,2]
[361338980,1747489845319,-450.0,0.00014383,2]
[361338981,1747489845328,-836.2,0.00014383,2]
[361338982,1747489845338,-363.327273,0.00014384,2]
[361338983,1747489845348,-363.327273,0.00014384,2]
[361338984,1747489845357,-363.327273,0.00014384,2]
[361338985,1747489845367,-362.7518958,0.00014384,2]
[361338986,1747489845377,-500.0,0.00014499,2]
[361338987,1747489845386,-500.0,0.00014499,2]
[361338988,1747489845396,-500.0,0.00014499,2]
[361338989,1747489845406,-614.79370819,0.00014499,2]
[361338990,1747489845415,-500.0,0.00014499,2]
[361338991,1747489845424,-629.75630598,0.00014499,2]
[361338992,1747489845434,-500.0,0.00014499,2]
[361338993,1747489845443,-410.76631728,0.00014499,2]
[361338994,1747489845452,-500.0,0.00014499,2]
[361338995,1747489845461,-500.0,0.00014499,2]
[361338996,1747489845471,-500.0,0.00014499,2]
[361338997,1747489845482,-500.0,0.00014499,2]
[361338998,1747489845491,-500.0,0.00014499,2]
[361338999,1747489845501,-541.82,0.00014499,2]
[361339000,1747489845510,-541.82,0.00014499,2]
[361339001,1747489845520,-541.82,0.00014499,2]
[361339002,1747489845530,-541.82,0.00014499,2]
[361339003,1747489845540,-40000.0,0.000145,2]
[361339004,1747489845550,-151.0,0.000145,2]
[361339005,1747489845559,-151.0,0.000145,2]
[361339006,1747489845569,-276.615755,0.000145,2]
[361339007,1747489845578,-276.615755,0.000145,2]
[361339008,1747489845587,-151.0,0.000145,2]
[361339009,1747489845596,-151.0,0.000145,2]
[361339010,1747489845606,-151.0,0.000145,2]
[361339011,1747489845615,-151.0,0.000145,2]
[361339012,1747489845624,-412.008283,0.000145,2]
[361339013,1747489845633,-624.471708,0.000145,2]
[361339014,1747489845643,-412.008283,0.000145,2]
[361339015,1747489845652,-624.471708,0.000145,2]
[361339016,1747489845662,-220.491178,0.000145,2]
[361339017,1747489845671,-220.491178,0.000145,2]
[361339018,1747489845681,-156.993649,0.000145,2]
[361339019,1747489845691,-151.0,0.000145,2]
[361339020,1747489845700,-151.0,0.000145,2]
[361339021,1747489845710,-151.0,0.000145,2]
[361339022,1747489845720,-151.0,0.000145,2]
[361339023,1747489845731,-151.0,0.000145,2]
[361339024,1747489845740,-151.0,0.000145,2]
[361339025,1747489845750,-151.0,0.000145,2]
[361339026,1747489845760,-151.0,0.000145,2]
[361339027,1747489845770,-151.0,0.000145,2]
[361339028,1747489845780,-151.57308,0.000145,2]
[361339029,1747489845789,-151.0,0.000145,2]
[361339030,1747489845799,-291.394929,0.000145,2]
[361339031,1747489845809,-154.897987,0.000145,2]
[361339032,1747489845818,-151.0,0.000145,2]
[361339033,1747489845828,-151.0,0.000145,2]
[361339034,1747489845837,-151.0,0.000145,2]
[361339035,1747489845846,-151.0,0.000145,2]
[361339036,1747489845855,-151.0,0.000145,2]
[361339037,1747489845864,-153.46045,0.000145,2]
[361339038,1747489845873,-153.46045,0.000145,2]
[361339039,1747489845883,-196.982207,0.000145,2]
[361339041,1747489845892,-151.0,0.000145,2]
[361339042,1747489845902,-253.80693,0.000145,2]
[361339043,1747489845911,-253.80693,0.000145,2]
[361339044,1747489845920,-151.0,0.000145,2]
[361339045,1747489845930,-164.199467,0.000145,2]
[361339046,1747489845939,-164.199467,0.000145,2]
[361339047,1747489845949,-151.0,0.000145,2]
[361339048,1747489845960,-151.0,0.000145,2]
[361339049,1747489845972,-151.0,0.000145,2]
[361339050,1747489845981,-219.934243,0.000145,2]
[361339051,1747489845993,-151.0,0.000145,2]
[361339052,1747489846003,-232.968047,0.000145,2]
[361339053,1747489846012,-232.968047,0.000145,2]
[361339054,1747489846023,-151.0,0.000145,2]
[361339055,1747489846033,-219.934243,0.000145,2]
[361339056,1747489846043,-6519.274302,0.000145,2]
[361339057,1747489846052,-151.0,0.000145,2]
[361339058,1747489846062,-6519.274302,0.000145,2]
[361339060,1747489846071,-178.55695,0.000145,2]
[361339061,1747489846082,-151.0,0.000145,2]
[361339062,1747489846092,-151.0,0.000145,2]
[361339063,1747489846102,-151.0,0.000145,2]
[361339064,1747489846111,-151.0,0.000145,2]
[361339065,1747489846120,-208.09526,0.000145,2]
[361339067,1747489846130,-208.09526,0.000145,2]
[361339069,1747489846139,-151.0,0.000145,2]
[361339070,1747489846148,-151.0,0.000145,2]
[361339071,1747489846157,-151.0,0.000145,2]
[361339072,1747489846166,-151.0,0.000145,2]
[361339073,1747489846176,-179.157862,0.000145,2]
[361339074,1747489846186,-179.157862,0.000145,2]
[361339075,1747489846195,-2431.420396,0.000145,2]
[361339076,1747489846205,-151.0,0.000145,2]
[361339077,1747489846215,-2431.420396,0.000145,2]
[361339078,1747489846224,-151.0,0.000145,2]
[361339079,1747489846233,-151.0,0.000145,2]
[361339081,1747489846243,-151.0,0.000145,2]
[361339083,1747489846252,-471.38336,0.000145,2]
[361339085,1747489846261,-471.38336,0.000145,2]
[361339087,1747489846270,-151.0,0.000145,2]
[361339088,1747489846281,-151.0,0.00014519,2]
[361339089,1747489846292,-151.0,0.00014519,2]
[361339091,1747489846301,-151.0,0.0001452,2]
[361339092,1747489846311,-151.0,0.0001452,2]
[361339093,1747489846320,-151.0,0.0001452,2]
[361339094,1747489846330,-151.0,0.0001452,2]
[361339095,1747489846340,-152.613938,0.0001452,2]
[361339096,1747489846349,-152.613938,0.0001452,2]
[361339098,1747489846359,-151.376095,0.0001452,2]
[361339099,1747489846368,-151.619481,0.0001452,2]
[361339100,1747489846377,-151.0,0.0001452,2]
[361339101,1747489846386,-151.0,0.0001452,2]
[361339102,1747489846396,-151.0,0.0001452,2]
[361339103,1747489846406,-151.0,0.0001452,2]
[361339105,1747489846415,-151.0,0.0001452,2]
[361339107,1747489846425,-151.0,0.0001452,2]
[361339109,1747489846436,-196.982207,0.0001452,2]
[361339111,1747489846446,-151.0,0.0001452,2]
[361339113,1747489846456,-151.0,0.0001452,2]
[361339115,1747489846465,-164.199467,0.0001452,2]
[361339117,1747489846475,-164.199467,0.0001452,2]
[361339119,1747489846484,-151.0,0.0001452,2]
[361339121,1747489846493,-151.0,0.0001452,2]
[361339123,1747489846502,-151.0,0.0001452,2]
[361339125,1747489846511,-219.934243,0.0001452,2]
[361339127,1747489846520,-232.968047,0.0001452,2]
[361339129,1747489846530,-232.968047,0.0001452,2]
[361339131,1747489846539,-151.0,0.0001452,2]
[361339133,1747489846548,-219.934243,0.0001452,2]
[361339135,1747489846557,-392.2953512,0.0001452,2]
[361339137,1747489846567,-6519.274302,0.0001452,2]
[361339139,1747489846576,-151.0,0.0001452,2]
[361339141,1747489846585,-6519.274302,0.0001452,2]
[361339143,1747489846595,-450.0,0.0001452,2]
[361339145,1747489846604,-450.0,0.0001452,2]
[361339147,1747489846613,-151.0,0.0001452,2]
[361339149,1747489846622,-151.0,0.0001452,2]
[361339151,1747489846633,-151.0,0.0001452,2]
[361339153,1747489846642,-450.0,0.0001452,2]
[361339155,1747489846651,-208.09526,0.0001452,2]
[361339157,1747489846660,-208.09526,0.0001452,2]
[361339159,1747489846669,-151.0,0.0001452,2]